fUST/lending_fUST_20240730
["ID","MTS","AMOUNT","RATE_DAILY","PERIOD"]
[333606714,1722276653860,-542.11641882,0.00013972,2]
[333606715,1722276653869,-500.0,0.00013972,2]
[333606716,1722276653879,-500.0,0.00013972,2]
[333606717,1722276653888,-500.0,0.00013972,2]
[333606718,1722276653898,-500.0,0.00013972,2]
[333606719,1722276653968,-516.35918229,0.00013972,2]
[333606720,1722276653979,-503.57721917,0.00013972,2]
[333606721,1722276653988,-500.0,0.00013972,2]
[333606722,1722276653997,-500.0,0.00013972,2]
[333606723,1722276654007,-500.0,0.00013972,2]
[333606724,1722276654019,-605.83,0.00013972,2]
[333606725,1722276654031,-500.0,0.00013972,2]
[333606726,1722276654043,-500.0,0.00013972,2]
[333606727,1722276654054,-500.0,0.00013972,2]
[333606728,1722276654063,-500.0,0.00013972,2]
[333606729,1722276654074,-500.0,0.00013972,2]
[333606730,1722276654085,-500.0,0.00013972,2]
[333606731,1722276654096,-501.26766074,0.00013972,2]
[333606732,1722276654107,-500.0,0.00013972,2]
[333606733,1722276654118,-500.0,0.00013972,2]
[333606734,1722276654127,-500.0,0.00013972,2]
[333606735,1722276654137,-500.0,0.00013972,2]
[333606736,1722276654147,-779.76,0.00013972,2]
[333606737,1722276654156,-500.0,0.00013972,2]
[333606738,1722276654166,-556.29,0.00013972,2]
[333606739,1722276654175,-500.0,0.00013972,2]
[333606740,1722276654185,-500.0,0.00013972,2]
[333606741,1722276654194,-500.0,0.00013972,2]
[333606742,1722276654204,-500.0,0.00013972,2]
[333606743,1722276654214,-500.0,0.00013972,2]
[333606744,1722276654224,-500.0,0.00013972,2]
[333606745,1722276654233,-500.0,0.00013972,2]
[333606746,1722276654243,-500.0,0.00013972,2]
[333606747,1722276654252,-500.0,0.00013972,2]
[333606748,1722276654262,-500.0,0.00013972,2]
[333606749,1722276654275,-525.52236644,0.00013972,2]
[333606750,1722276654287,-500.0,0.00013972,2]
[333606751,1722276654296,-516.02809954,0.00013972,2]
[333606752,1722276654307,-503.15642272,0.00013972,2]
[333606753,1722276654319,-500.0,0.00013972,2]
[333606754,1722276654331,-500.0,0.00013972,2]
[333606755,1722276654343,-500.0,0.00013972,2]
[333606756,1722276654353,-500.0,0.00013972,2]
[333606757,1722276654362,-500.0,0.00013972,2]
[333606758,1722276654371,-500.0,0.00013972,2]
[333606759,1722276654382,-565.78,0.00013972,2]
[333606760,1722276654393,-500.0,0.00013972,2]
[333606761,1722276654403,-539.36018582,0.00013972,2]
[333606762,1722276654414,-500.0,0.00013972,2]
[333606763,1722276654425,-522.58,0.00013972,2]
[333606764,1722276654437,-500.0,0.00013972,2]
[333606765,1722276654449,-505.15552001,0.00013972,2]
[333606766,1722276654460,-511.70907281,0.00013972,2]
[333606767,1722276654478,-500.0,0.00013972,2]
[333606768,1722276654499,-500.0,0.00013972,2]
[333606769,1722276654517,-616.05700974,0.00013972,2]
[333606770,1722276654538,-500.0,0.00013972,2]
[333606771,1722276654559,-610.13532136,0.00013972,2]
[333606772,1722276654576,-500.0,0.00013972,2]
[333606773,1722276654599,-500.0,0.00013972,2]
[333606774,1722276654615,-500.0,0.00013972,2]
[333606775,1722276654631,-624.93,0.00013972,2]
[333606776,1722276654651,-965.99,0.00013972,2]
[333606777,1722276654672,-500.0,0.00013972,2]
[333606778,1722276654684,-500.0,0.00013972,2]
[333606779,1722276654701,-595.89625594,0.00013972,2]
[333606780,1722276654716,-426.81114179,0.00013972,2]
[333606781,1722276654736,-1158.46,0.00013972,2]
[333606782,1722276654752,-571.03951442,0.00013972,2]
[333606783,1722276654767,-500.0,0.00013972,2]
[333606784,1722276654784,-500.0,0.00013972,2]
[333606785,1722276654800,-500.0,0.00013972,2]
[333606786,1722276654815,-500.0,0.00013972,2]
[333606787,1722276654830,-1282.05,0.00013972,2]
[333606788,1722276654844,-500.0,0.00013972,2]
[333606789,1722276654858,-2303.06,0.00013972,2]
[333606790,1722276654875,-500.0,0.00013972,2]
[333606791,1722276654890,-177.56488755,0.00013972,2]
[333606792,1722276654905,-500.0,0.00013972,2]
[333606793,1722276654919,-500.0,0.00013972,2]
[333606794,1722276654932,-500.0,0.00013972,2]
[333606795,1722276654946,-500.0,0.00013972,2]
[333606796,1722276654961,-500.0,0.00013972,2]
[333606797,1722276654974,-544.16,0.00013972,2]
[333606798,1722276654988,-500.0,0.00013972,2]
[333606799,1722276655004,-500.0,0.00013972,2]
[333606800,1722276655020,-500.0,0.00013972,2]
[333606801,1722276655035,-500.0,0.00013972,2]
[333606802,1722276655052,-500.0,0.00013972,2]
[333606803,1722276655067,-500.0,0.00013972,2]
[333606804,1722276655082,-500.0,0.00013972,2]
[333606805,1722276655098,-500.0,0.00013972,2]
[333606806,1722276655116,-500.0,0.00013972,2]
[333606807,1722276655133,-500.0,0.00013972,2]
[333606808,1722276655149,-760.89,0.00013972,2]
[333606809,1722276655161,-500.0,0.00013972,2]
[333606810,1722276655170,-500.0,0.00013972,2]
[333606811,1722276655180,-503.53226289,0.00013972,2]
[333606812,1722276655189,-1107.31,0.00013972,2]
[333606813,1722276655200,-500.0,0.00013972,2]
[333606814,1722276655211,-508.54346345,0.00013972,2]
[333606815,1722276655222,-1018.56,0.00013972,2]
[333606816,1722276655355,-500.0,0.00013972,2]
[333606817,1722276655367,-1731.92,0.00013972,2]
[333606818,1722276655376,-500.0,0.00013972,2]
[333606819,1722276655386,-500.0,0.00013972,2]
[333606820,1722276655395,-500.0,0.00013972,2]
[333606821,1722276655404,-502.74,0.00013972,2]
[333606822,1722276655414,-500.0,0.00013972,2]
[333606823,1722276655424,-551.77,0.00013972,2]
[333606824,1722276655434,-500.0,0.00013972,2]
[333606825,1722276655443,-500.0,0.00013972,2]
[333606826,1722276655453,-601.95,0.00013972,2]
[333606827,1722276655464,-568.96581752,0.00013972,2]
[333606828,1722276655475,-500.0,0.00013972,2]
[333606829,1722276655485,-500.0,0.00013972,2]
[333606830,1722276655494,-500.0,0.00013972,2]
[333606831,1722276655503,-500.4,0.00013972,2]
[333606832,1722276655513,-500.0,0.00013972,2]
[333606833,1722276655522,-500.0,0.00013972,2]
[333606834,1722276655531,-500.0,0.00013972,2]
[333606835,1722276655541,-165.5872134,0.00013972,2]
[333606836,1722276655550,-1427.91,0.00013972,2]
[333606837,1722276655560,-500.0,0.00013972,2]
[333606838,1722276655569,-509.98537346,0.00013972,2]
[333606839,1722276655579,-511.11682156,0.00013972,2]
[333606840,1722276655588,-638.03,0.00013972,2]
[333606841,1722276655598,-625.63,0.00013972,2]
[333606842,1722276655607,-500.0,0.00013972,2]
[333606843,1722276655616,-500.0,0.00013972,2]
[333606844,1722276655626,-500.0,0.00013972,2]
[333606845,1722276655635,-502.38333647,0.00013972,2]
[333606846,1722276655644,-2995.86,0.00013972,2]
[333606847,1722276655653,-896.34,0.00013972,2]
[333606848,1722276655662,-500.0,0.00013972,2]
[333606849,1722276655672,-500.0,0.00013972,2]
[333606850,1722276655681,-500.0,0.00013972,2]
[333606851,1722276655691,-6574.82,0.00013972,2]
[333606852,1722276655700,-7747.29,0.00013972,2]
[333606853,1722276655710,-500.0,0.00013972,2]
[333606854,1722276655720,-500.0,0.00013972,2]
[333606855,1722276655730,-500.0,0.00013972,2]
[333606856,1722276655739,-1440.57,0.00013972,2]
[333606857,1722276655748,-500.0,0.00013972,2]
[333606858,1722276655758,-500.0,0.00013972,2]
[333606859,1722276655767,-500.0,0.00013972,2]
[333606860,1722276655777,-500.0,0.00013972,2]
[333606861,1722276655786,-500.0,0.00013972,2]
[333606862,1722276655796,-500.0,0.00013972,2]
[333606863,1722276655806,-500.0,0.00013972,2]
[333606864,1722276655816,-500.0,0.00013972,2]
[333606865,1722276655825,-502.74325422,0.00013972,2]
[333606866,1722276655835,-1462.84,0.00013972,2]
[333606867,1722276655845,-500.0,0.00013972,2]
[333606868,1722276655854,-500.0,0.00013972,2]
[333606869,1722276655864,-402.99362953,0.00013972,2]
[333606870,1722276655873,-500.0,0.00013972,2]
[333606871,1722276655883,-695.47,0.00013972,2]
[333606872,1722276655892,-1008.8,0.00013972,2]
[333606873,1722276655902,-502.78378867,0.00013972,2]
[333606874,1722276655911,-500.0,0.00013972,2]
[333606875,1722276655921,-500.0,0.00013972,2]
[333606876,1722276655930,-500.0,0.00013972,2]
[333606877,1722276655939,-500.0,0.00013972,2]
[333606878,1722276655949,-500.0,0.00013972,2]
[333606879,1722276655959,-500.0,0.00013972,2]
[333606880,1722276655968,-500.0,0.00013972,2]
[333606881,1722276655977,-758.42,0.00013972,2]
[333606882,1722276655986,-1338.54,0.00013972,2]
[333606883,1722276655996,-500.0,0.00013972,2]
[333606884,1722276656006,-500.0,0.00013972,2]
[333606885,1722276656015,-2472.95,0.00013972,2]
[333606886,1722276656025,-500.0,0.00013972,2]
[333606887,1722276656034,-500.0,0.00013972,2]
[333606888,1722276656043,-855.3,0.00013972,2]
[333606889,1722276656053,-359.10692004,0.00013972,2]
[333606890,1722276656063,-500.0,0.00013972,2]
[333606891,1722276656073,-500.0,0.00013972,2]
[333606892,1722276656082,-503.66773713,0.00013972,2]
[333606893,1722276656092,-500.0,0.00013972,2]
[333606894,1722276656102,-500.0,0.00013972,2]
[333606895,1722276656112,-500.0,0.00013972,2]
[333606896,1722276656121,-500.0,0.00013972,2]
[333606897,1722276656131,-1539.07,0.00013972,2]
[333606898,1722276656141,-1462.13,0.00013972,2]
[333606899,1722276656150,-1607.79,0.00013972,2]
[333606900,1722276656160,-500.0,0.00013972,2]
[333606901,1722276656169,-1193.36,0.00013972,2]
[333606902,1722276656179,-5135.3,0.00013972,2]
[333606903,1722276656188,-500.0,0.00013972,2]
[333606904,1722276656198,-500.0,0.00013972,2]
[333606905,1722276656207,-1035.36,0.00013972,2]
[333606906,1722276656220,-500.0,0.00013972,2]
[333606907,1722276656229,-500.0,0.00013972,2]
[333606908,1722276656239,-500.0,0.00013972,2]
[333606909,1722276656248,-500.0,0.00013972,2]
[333606910,1722276656258,-943.46,0.00013972,2]
[333606911,1722276656268,-500.0,0.00013972,2]
[333606912,1722276656279,-500.0,0.00013972,2]
[333606913,1722276656289,-1487.43,0.00013972,2]
[333606914,1722276656298,-504.37203134,0.00013972,2]
[333606915,1722276656308,-1580.18,0.00013972,2]
[333606916,1722276656318,-629.1,0.00013972,2]
[333606917,1722276656327,-500.0,0.00013972,2]
[333606918,1722276656337,-500.0,0.00013972,2]
[333606919,1722276656349,-500.0,0.00013972,2]
[333606920,1722276656358,-500.0,0.00013972,2]
[333606921,1722276656368,-500.0,0.00013972,2]
[333606922,1722276656377,-1099.29,0.00013972,2]
[333606923,1722276656387,-500.0,0.00013972,2]
[333606924,1722276656396,-500.0,0.00013972,2]
[333606925,1722276656406,-500.0,0.00013972,2]
[333606926,1722276656415,-500.0,0.00013972,2]
[333606927,1722276656424,-500.0,0.00013972,2]
[333606928,1722276656434,-500.0,0.00013972,2]
[333606929,1722276656443,-3959.92,0.00013972,2]
[333606930,1722276656453,-645.83,0.00013972,2]
[333606931,1722276656462,-849.45,0.00013972,2]
[333606932,1722276656472,-2954.63,0.00013972,2]
[333606933,1722276656482,-801.38,0.00013972,2]
[333606934,1722276656492,-672.49,0.00013972,2]
[333606935,1722276656501,-500.0,0.00013972,2]
[333606936,1722276656511,-1954.17,0.00013972,2]
[333606937,1722276656520,-500.0,0.00013972,2]
[333606938,1722276656530,-500.0,0.00013972,2]
[333606939,1722276656540,-500.0,0.00013972,2]
[333606940,1722276656550,-500.0,0.00013972,2]
[333606941,1722276656560,-1270.95,0.00013972,2]
[333606942,1722276656569,-500.0,0.00013972,2]
[333606943,1722276656579,-500.0,0.00013972,2]
[333606944,1722276656588,-1850.91,0.00013972,2]
[333606945,1722276656598,-1774.36,0.00013972,2]
[333606946,1722276656608,-500.0,0.00013972,2]
[333606947,1722276656617,-500.0,0.00013972,2]
[333606948,1722276656627,-3533.38,0.00013972,2]
[333606949,1722276656636,-500.0,0.00013972,2]
[333606950,1722276656646,-1252.33,0.00013972,2]
[333606951,1722276656655,-512.79591096,0.00013972,2]
[333606952,1722276656665,-500.0,0.00013972,2]
[333606953,1722276656675,-152.82767192,0.00013972,2]
[333606954,1722276656685,-1521.87,0.00013972,2]
[333606955,1722276656694,-798.59,0.00013972,2]
[333606956,1722276656703,-911.19,0.00013972,2]
[333606957,1722276656716,-1256.19,0.00013972,2]
[333606958,1722276656726,-779.68,0.00013972,2]
[333606959,1722276656736,-500.0,0.00013972,2]
[333606960,1722276656746,-1090.56,0.00013972,2]
[333606961,1722276656759,-1788.47,0.00013972,2]
[333606962,1722276656769,-1436.59,0.00013972,2]
[333606963,1722276656779,-500.0,0.00013972,2]
[333606964,1722276656789,-500.0,0.00013972,2]
[333606965,1722276656801,-1080.54,0.00013972,2]
[333606966,1722276656812,-190.45554117,0.00013972,2]
[333606967,1722276656821,-1265.78,0.00013972,2]
[333606968,1722276656831,-500.0,0.00013972,2]
[333606969,1722276656840,-500.0,0.00013972,2]
[333606970,1722276656850,-500.0,0.00013972,2]
[333606971,1722276656859,-500.0,0.00013972,2]
[333606972,1722276656870,-500.0,0.00013972,2]
[333606973,1722276656880,-1080.91,0.00013972,2]
[333606974,1722276656889,-500.0,0.00013972,2]
[333606975,1722276656899,-500.0,0.00013972,2]
[333606976,1722276656909,-500.0,0.00013972,2]
[333606977,1722276656918,-500.0,0.00013972,2]
[333606978,1722276656928,-502.03601404,0.00013972,2]
[333606979,1722276656938,-500.0,0.00013972,2]
[333606980,1722276656948,-500.0,0.00013972,2]
[333606981,1722276656959,-500.0,0.00013972,2]
[333606982,1722276656970,-500.0,0.00013972,2]
[333606983,1722276656980,-521.77973586,0.00013972,2]
[333606984,1722276656990,-500.0,0.00013972,2]
[333606985,1722276657000,-500.0,0.00013972,2]
[333606986,1722276657011,-500.0,0.00013972,2]
[333606987,1722276657021,-500.0,0.00013972,2]
[333606988,1722276657031,-500.0,0.00013972,2]
[333606989,1722276657042,-3798.93,0.00013972,2]
[333606990,1722276657052,-500.0,0.00013972,2]
[333606991,1722276657063,-782.67,0.00013972,2]
[333606992,1722276657072,-500.0,0.00013972,2]
[333606993,1722276657082,-1667.46,0.00013972,2]
[333606994,1722276657091,-500.0,0.00013972,2]
[333606995,1722276657101,-500.0,0.00013972,2]
[333606996,1722276657111,-500.0,0.00013972,2]
[333606997,1722276657120,-500.0,0.00013972,2]
[333606998,1722276657130,-984.88,0.00013972,2]
[333606999,1722276657140,-500.0,0.00013972,2]
[333607000,1722276657151,-699.27,0.00013972,2]
[333607001,1722276657163,-1871.83,0.00013972,2]
[333607002,1722276657172,-500.0,0.00013972,2]
[333607003,1722276657181,-500.0,0.00013972,2]
[333607004,1722276657191,-500.0,0.00013972,2]
[333607005,1722276657202,-500.0,0.00013972,2]
[333607006,1722276657214,-500.0,0.00013972,2]
[333607007,1722276657224,-500.0,0.00013972,2]
[333607008,1722276657237,-744.6630815,0.00014,5]
[333607009,1722276657246,-20662.74045759,0.00014,4]
[333607010,1722276657257,-2001.92,0.00014,2]
[333607011,1722276657267,-150.112233,0.00014,2]
[333607012,1722276657357,-247.18420879,0.00014,2]
[333607013,1722276657373,-150.112233,0.000141,2]
[333607014,1722276657383,-150.112233,0.000142,2]
[333607015,1722276657394,-500.0,0.00014246,2]
[333607016,1722276657403,-548.63,0.00014246,2]
[333607017,1722276657413,-500.0,0.00014246,2]
[333607018,1722276657423,-500.0,0.00014246,2]
[333607019,1722276657433,-500.0,0.00014246,2]
[333607020,1722276657442,-500.0,0.00014246,2]
[333607021,1722276657452,-610.18274789,0.00014246,2]
[333607022,1722276657461,-500.0,0.00014246,2]
[333607023,1722276657471,-500.0,0.00014246,2]
[333607024,1722276657481,-500.0,0.00014246,2]
[333607025,1722276657491,-500.0,0.00014246,2]
[333607026,1722276657501,-500.0,0.00014246,2]
[333607027,1722276657510,-500.0,0.00014246,2]
[333607028,1722276657520,-500.0,0.00014246,2]
[333607029,1722276657532,-500.0,0.00014246,2]
[333607030,1722276657542,-500.0,0.00014246,2]
[333607031,1722276657553,-216.64701091,0.00014246,2]
[333607032,1722276657564,-500.0,0.00014246,2]
[333607033,1722276657574,-1062.69,0.00014246,2]
[333607034,1722276657585,-511.17279121,0.00014246,2]
[333607035,1722276657596,-542.4,0.00014246,2]
[333607036,1722276657607,-500.0,0.00014246,2]
[333607037,1722276657617,-500.0,0.00014246,2]
[333607038,1722276657628,-500.0,0.00014246,2]
[333607039,1722276657637,-500.0,0.00014246,2]
[333607040,1722276657647,-500.0,0.00014246,2]
[333607041,1722276657657,-500.0,0.00014246,2]
[333607042,1722276657668,-500.0,0.00014246,2]
[333607043,1722276657677,-500.0,0.00014246,2]
[333607044,1722276657687,-500.0,0.00014246,2]
[333607045,1722276657696,-500.0,0.00014246,2]
[333607046,1722276657706,-500.0,0.00014246,2]
[333607047,1722276657716,-500.0,0.00014246,2]
[333607048,1722276657726,-500.0,0.00014246,2]
[333607049,1722276657736,-507.5012105,0.00014246,2]
[333607050,1722276657746,-549.39015581,0.00014246,2]
[333607051,1722276657757,-615.61278734,0.00014246,2]
[333607052,1722276657767,-500.0,0.00014246,2]
[333607053,1722276657777,-500.0,0.00014246,2]
[333607054,1722276657786,-484.50453269,0.00014246,2]
[333607055,1722276657795,-500.0,0.00014246,2]
[333607056,1722276657805,-626.37,0.00014246,2]
[333607057,1722276657814,-500.0,0.00014246,2]
[333607058,1722276657824,-500.0,0.00014246,2]
[333607059,1722276657833,-500.0,0.00014246,2]
[333607060,1722276657843,-500.0,0.00014246,2]
[333607061,1722276657852,-500.0,0.00014246,2]
[333607062,1722276657861,-652.95,0.00014246,2]
[333607063,1722276657871,-500.0,0.00014246,2]
[333607064,1722276657881,-500.0,0.00014246,2]
[333607065,1722276657890,-500.0,0.00014246,2]
[333607066,1722276657900,-500.0,0.00014246,2]
[333607067,1722276657909,-422.77204055,0.00014246,2]
[333607068,1722276657919,-500.0,0.00014246,2]
[333607069,1722276657928,-153.92193523,0.00014246,2]
[333607070,1722276657938,-837.73,0.00014246,2]
[333607071,1722276657947,-500.0,0.00014246,2]
[333607072,1722276657956,-500.0,0.00014246,2]
[333607073,1722276657967,-500.0,0.00014246,2]
[333607074,1722276657976,-500.0,0.00014246,2]
[333607075,1722276657986,-500.0,0.00014246,2]
[333607076,1722276657995,-500.0,0.00014246,2]
[333607077,1722276658005,-500.0,0.00014246,2]
[333607078,1722276658014,-500.0,0.00014246,2]
[333607079,1722276658024,-500.0,0.00014246,2]
[333607080,1722276658033,-572.44003168,0.00014246,2]
[333607081,1722276658043,-785.55,0.00014246,2]
[333607082,1722276658052,-500.0,0.00014246,2]
[333607083,1722276658061,-265.0,0.00014246,2]
[333607084,1722276658071,-500.0,0.00014246,2]
[333607085,1722276658080,-505.48808083,0.00014246,2]
[333607086,1722276658090,-500.0,0.00014246,2]
[333607087,1722276658099,-500.0,0.00014246,2]
[333607088,1722276658108,-500.0,0.00014246,2]
[333607089,1722276658118,-500.0,0.00014246,2]
[333607090,1722276658128,-500.0,0.00014246,2]
[333607091,1722276658138,-500.0,0.00014246,2]
[333607092,1722276658147,-500.0,0.00014246,2]
[333607093,1722276658157,-500.0,0.00014246,2]
[333607094,1722276658166,-500.0,0.00014246,2]
[333607095,1722276658175,-500.0,0.00014246,2]
[333607096,1722276658185,-500.0,0.00014246,2]
[333607097,1722276658197,-500.0,0.00014246,2]
[333607098,1722276658207,-500.0,0.00014246,2]
[333607099,1722276658218,-500.0,0.00014246,2]
[333607100,1722276658227,-500.0,0.00014246,2]
[333607101,1722276658236,-500.0,0.00014246,2]
[333607102,1722276658245,-500.0,0.00014246,2]
[333607103,1722276658255,-500.0,0.00014246,2]
[333607104,1722276658264,-500.0,0.00014246,2]
[333607105,1722276658276,-500.0,0.00014246,2]
[333607106,1722276658286,-608.82070587,0.00014246,2]
[333607107,1722276658295,-500.0,0.00014246,2]
[333607108,1722276658306,-500.0,0.00014246,2]
[333607109,1722276658315,-798.45,0.00014246,2]
[333607110,1722276658324,-675.6,0.00014246,2]
[333607111,1722276658334,-500.0,0.00014246,2]
[333607112,1722276658344,-500.0,0.00014246,2]
[333607113,1722276658353,-500.0,0.00014246,2]
[333607114,1722276658363,-500.0,0.00014246,2]
[333607115,1722276658372,-500.0,0.00014246,2]
[333607116,1722276658382,-1483.95,0.00014246,2]
[333607117,1722276658391,-500.0,0.00014246,2]
[333607118,1722276658400,-500.0,0.00014246,2]
[333607119,1722276658410,-500.0,0.00014246,2]
[333607120,1722276658419,-500.0,0.00014246,2]
[333607121,1722276658429,-500.0,0.00014246,2]
[333607122,1722276658439,-500.0,0.00014246,2]
[333607123,1722276658447,-500.0,0.00014246,2]
[333607124,1722276658456,-500.0,0.00014246,2]
[333607125,1722276658466,-500.0,0.00014246,2]
[333607126,1722276658476,-500.0,0.00014246,2]
[333607127,1722276658486,-500.0,0.00014246,2]
[333607128,1722276658495,-500.0,0.00014246,2]
[333607129,1722276658504,-655.29,0.00014246,2]
[333607130,1722276658514,-500.0,0.00014246,2]
[333607131,1722276658523,-500.0,0.00014246,2]
[333607132,1722276658533,-500.0,0.00014246,2]
[333607133,1722276658542,-500.0,0.00014246,2]
[333607134,1722276658552,-500.0,0.00014246,2]
[333607135,1722276658561,-500.0,0.00014246,2]
[333607136,1722276658571,-500.0,0.00014246,2]
[333607137,1722276658580,-509.94165345,0.00014246,2]
[333607138,1722276658590,-500.0,0.00014246,2]
[333607139,1722276658599,-778.38,0.00014246,2]
[333607140,1722276658610,-500.0,0.00014246,2]
[333607141,1722276658621,-906.84,0.00014246,2]
[333607142,1722276658631,-504.0,0.00014246,2]
[333607143,1722276658641,-1074.46,0.00014246,2]
[333607144,1722276658651,-500.0,0.00014246,2]
[333607145,1722276658661,-514.05161344,0.00014246,2]
[333607146,1722276658671,-500.0,0.00014246,2]
[333607147,1722276658680,-500.0,0.00014246,2]
[333607148,1722276658689,-500.0,0.00014246,2]
[333607149,1722276658699,-500.0,0.00014246,2]
[333607150,1722276658708,-500.0,0.00014246,2]
[333607151,1722276658719,-535.27898991,0.00014246,2]
[333607152,1722276658728,-500.0,0.00014246,2]
[333607153,1722276658738,-605.83,0.00014246,2]
[333607154,1722276658747,-500.0,0.00014246,2]
[333607155,1722276658757,-500.0,0.00014246,2]
[333607156,1722276658766,-500.0,0.00014246,2]
[333607157,1722276658775,-500.0,0.00014246,2]
[333607158,1722276658785,-500.0,0.00014246,2]
[333607159,1722276658794,-500.0,0.00014246,2]
[333607160,1722276658804,-504.89101976,0.00014246,2]
[333607161,1722276658814,-500.0,0.00014246,2]
[333607162,1722276658824,-500.0,0.00014246,2]
[333607163,1722276658834,-500.0,0.00014246,2]
[333607164,1722276658844,-779.76,0.00014246,2]
[333607165,1722276658853,-500.0,0.00014246,2]
[333607166,1722276658863,-556.29,0.00014246,2]
[333607167,1722276658872,-500.0,0.00014246,2]
[333607168,1722276658882,-500.0,0.00014246,2]
[333607169,1722276658891,-170.3200768,0.00014246,2]
[333607170,1722276658901,-254.86600932,0.00014246,2]
[333607171,1722276658910,-500.0,0.00014246,2]
[333607172,1722276658919,-500.0,0.00014246,2]
[333607173,1722276658929,-500.0,0.00014246,2]
[333607174,1722276658939,-500.0,0.00014246,2]
[333607175,1722276658949,-500.0,0.00014246,2]
[333607176,1722276658958,-500.0,0.00014246,2]
[333607177,1722276658968,-500.0,0.00014246,2]
[333607178,1722276658977,-500.0,0.00014246,2]
[333607179,1722276658986,-500.0,0.00014246,2]
[333607180,1722276658996,-500.0,0.00014246,2]
[333607181,1722276659006,-500.0,0.00014246,2]
[333607182,1722276659017,-500.0,0.00014246,2]
[333607183,1722276659028,-500.0,0.00014246,2]
[333607184,1722276659038,-565.78,0.00014246,2]
[333607185,1722276659049,-500.0,0.00014246,2]
[333607186,1722276659059,-505.20594028,0.00014246,2]
[333607187,1722276659068,-522.58,0.00014246,2]
[333607188,1722276659078,-500.0,0.00014246,2]
[333607189,1722276659087,-500.0,0.00014246,2]
[333607190,1722276659097,-500.0,0.00014246,2]
[333607191,1722276659107,-500.0,0.00014246,2]
[333607192,1722276659116,-500.0,0.00014246,2]
[333607193,1722276659206,-500.0,0.00014246,2]
[333607194,1722276659216,-624.93,0.00014246,2]
[333607195,1722276659226,-500.0,0.00014246,2]
[333607196,1722276659235,-965.99,0.00014246,2]
[333607197,1722276659246,-500.0,0.00014246,2]
[333607198,1722276659256,-1158.46,0.00014246,2]
[333607199,1722276659267,-500.0,0.00014246,2]
[333607200,1722276659277,-500.0,0.00014246,2]
[333607201,1722276659287,-505.15509623,0.00014246,2]
[333607202,1722276659297,-1282.05,0.00014246,2]
[333607203,1722276659308,-500.0,0.00014246,2]
[333607204,1722276659319,-2303.06,0.00014246,2]
[333607205,1722276659329,-500.0,0.00014246,2]
[333607206,1722276659341,-500.0,0.00014246,2]
[333607207,1722276659352,-323.24111165,0.00014246,2]
[333607208,1722276659362,-500.0,0.00014246,2]
[333607209,1722276659372,-500.0,0.00014246,2]
[333607210,1722276659382,-500.0,0.00014246,2]
[333607211,1722276659391,-544.16,0.00014246,2]
[333607212,1722276659400,-500.0,0.00014246,2]
[333607213,1722276659409,-500.0,0.00014246,2]